[Event "FIDE Candidates Tournament 2022"]
[Site "Madrid"]
[Date "2022.06.30"]
[Round "11.4"]
[White "Caruana, Fabiano"]
[Black "Ding, Liren"]
[Result "0-1"]
[ECO "C88"]
[WhiteElo "2786"]
[BlackElo "2806"]
[Annotator "TA"]
[PlyCount "156"]
[EventDate "2022.06.17"]
[EventType "tourn"]
[EventCountry "ESP"]
[SourceTitle "playchess.com"]
[Source "ChessBase"]
[SourceQuality "1"]
[TimeControl "40/7200:20/3600:900+30"]

{[%evp 22,156,22,21,11,11,10,6,17,0,0,0,0,0,0,0,0,0,0,0,0,0,0,-26,-33,-58,-66,-71,-71,-69,-71,-66,-39,-30,-1,-24,0,0,0,0,12,27,66,50,85,95,127,114,117,110,113,115,108,108,111,111,111,111,101,104,97,62,77,77,96,114,113,113,77,56,56,63,63,45,39,45,45,44,72,45,45,45,45,45,45,8,8,0,0,0,0,0,0,-88,-88,-89,-89,-93,-8,-8,-8,-111,-108,-111,-110,-112,-90,-91,-89,-116,-117,-117,-118,-118,-118,-117,-115,-118,-101,-101,-101,-119,-120,-174,-112,-108,-114,-114,-105,-443,-436,-1984,-1814,-1298,-1225,-5039,-2079]} 1. e4 {[%emt 0:00:03]} e5 {[%emt 0:00:22]} 2. Nf3 {[%emt 0:00:05]} Nc6 {[%emt 0:00:04]} 3. Bb5 {[%emt 0:00:05][%cal Bf1b5,Bb5a4,Ba4b3,Bb3a2][%mdl 32]} a6 {[%emt 0:00:06]} 4. Ba4 {[%emt 0:00:06]} Nf6 {[%emt 0:00:04]} 5. O-O {[%emt 0:00:08]} Be7 {[%emt 0:00:02]} 6. Re1 {[%emt 0:00:16]} b5 {[%emt 0:00:05]} 7. Bb3 {[%emt 0:00:03]} O-O {[%emt 0:00:05]} 8. a4 {[%emt 0:00:05]} Bb7 {[%emt 0:00:16]} 9. d3 {[%emt 0:00:22]} d6 {[%emt 0:00:04]} 10. Bd2 {[%emt 0:00:19]} Qd7 {[%emt 0:00:49]} 11. Nc3 {[%emt 0:00:46]} Na5 {[%emt 0:01:15]} 12. Ba2 {[%emt 0:00:06]} b4 {[%emt 0:00:04] C88: Closed Ruy Lopez: Anti-Marshall Systems.} 13. Ne2 {[%emt 0:00:06]} c5 {[%emt 0:00:04]} 14. Ng3 {[%emt 0:00:09]} Rab8 {[%emt 0:01:05] [#] The position is equal.} 15. Nh4 $146 {[%emt 0:01:04]} ({Predecessor:} 15. Nf5 Bd8 16. h3 b3 17. Bxb3 Nxb3 18. cxb3 Bc6 19. Bc3 Ne8 20. Ne3 Nc7 21. Nc4 {1-0 (56) Duda,J (2760)-Durarbayli,V (2615) Katowice 2021}) 15... g6 {[%emt 0:08:13]} 16. Bh6 {[%emt 0:00:33]} Rfe8 {[%emt 0:00:11][%cal Of6e4]} 17. Nhf5 {[%emt 0:00:59]} Bd8 {[%emt 0:00:12]} (17... gxf5 18. Nxf5 Kh8 19. Bg7+ (19. Bxf7 Rg8 $11) 19... Kg8 20. Bxf6 Bxf6 21. Qh5 $18) 18. Ng7 {[%emt 0:01:30]} Rf8 {[%emt 0:03:01]} 19. h3 {[%emt 0:00:27] Inhibits Ng4.} b3 {[%emt 0:08:48]} 20. Bxb3 {[%emt 0:17:05]} Nxb3 {[%emt 0:00:54]} 21. cxb3 {[%emt 0:00:05]} Bc6 {[%emt 0:01:50]} 22. Rc1 {[%emt 0:17:50]} Kh8 {[%emt 0:02:26]} 23. Ne6 {[%emt 0:25:41] [#]} Qxe6 {[%emt 0:18:06]} 24. Bxf8 {[%emt 0:00:05]} Ba5 {[%emt 0:00:02][%mdl 64] Discovered Attack} 25. Bh6 {[%emt 0:00:05]} Bxe1 {[%emt 0:00:03] Black is more active.} 26. Qxe1 {[%emt 0:00:04]} Rxb3 {[%emt 0:00:26]} 27. Qa5 {[%emt 0:02:02]} Ng8 {[%emt 0:02:01]} 28. Be3 {[%emt 0:08:08]} Bb7 {[%emt 0:02:34]} 29. Qd2 {[%emt 0:01:01]} f6 {[%emt 0:04:43]} 30. f4 {[%emt 0:04:51]} exf4 {[%emt 0:03:04]} 31. Bxf4 {[%emt 0:00:09]} g5 {[%emt 0:00:05]} 32. Be3 {[%emt 0:00:09]} Qe5 {[%emt 0:00:09]} 33. Nf5 {[%emt 0:07:20]} Ne7 {[%emt 0:11:20]} 34. Nxe7 {[%emt 0:04:35]} Qxe7 {[%emt 0:00:05]} 35. Qc2 {[%emt 0:04:00]} Rb6 {[%emt 0:01:35]} 36. Rf1 {[%emt 0:10:16]} Kg7 {[%emt 0:03:14]} 37. a5 {[%emt 0:04:37]} Rc6 {[%emt 0:00:23]} 38. Bd2 {[%emt 0:00:15]} Rc8 {[%emt 0:02:47][%cal Oc5c4]} 39. Bc3 {[%emt 0:00:57]} Rf8 {[%emt 0:00:04]} 40. Qf2 {[%emt 0:00:00]} h6 {[%emt 0:00:00]} 41. h4 {[%emt 0:11:09] Hoping for hxg5.} Bc8 {[%emt 0:04:27][%cal Bb7c8,Bc8d7,Bd7b5,Bb5d3][%mdl 32]} 42. b4 {[%emt 0:01:45]} Bd7 {[%emt 0:06:17]} 43. bxc5 {[%emt 0:11:31]} dxc5 {[%emt 0:00:13]} 44. Rb1 {[%emt 0:02:15]} Bb5 {[%emt 0:03:34]} 45. hxg5 {[%emt 0:03:52]} hxg5 {[%emt 0:00:13]} 46. Qf5 {[%emt 0:00:04]} Kg8 {[%emt 0:02:35]} 47. d4 {[%emt 0:04:32]} Bd3 {[%emt 0:09:54][%csl LRb1,LRe4]} 48. Re1 {[%emt 0:00:05]} cxd4 {[%emt 0:04:23]} 49. Bxd4 {[%emt 0:01:19]} Qh7 {[%emt 0:16:03]} 50. Qf3 {[%emt 0:00:19]} Bb5 {[%emt 0:13:05]} 51. e5 {[%emt 0:03:47]} Qd7 {[%emt 0:00:48]} 52. Bc5 {[%emt 0:04:08]} Rc8 {[%emt 0:00:09]} 53. Qb3+ {[%emt 0:08:51]} Qf7 {[%emt 0:03:13]} 54. e6 {[%emt 0:00:21]} Qc7 {[%emt 0:00:49]} 55. e7+ {[%emt 0:01:48]} Kg7 {[%emt 0:00:01]} 56. Bd4 {[%emt 0:01:54]} Qf4 {[%emt 0:00:53]} 57. Be3 {[%emt 0:00:45]} (57. Bf2 $11 {remains equal.}) 57... Qg3 $17 {[%emt 0:00:50]} 58. Qb4 {[%emt 0:02:21]} Rh8 {[%emt 0:03:44] And now ...Bc6 would win.} ({But not} 58... Rc2 $6 59. Bd2 Qd3 60. Bxg5 fxg5 61. e8=Q Bxe8 62. Rxe8 Rc1+ 63. Kh2 Qh7+ 64. Kg3 Qd3+ 65. Kh2 Qh7+ 66. Kg3 Qd3+ 67. Kh2 $11) 59. e8=Q {[%emt 0:00:35] Against Bc6} Qh2+ {[%emt 0:04:48] Dancing on a razor blade.} (59... Bxe8 $17 60. Bd4 Qh2+ 61. Kf2 Qh4+ 62. Kg1 (62. g3 $2 Qh2+ 63. Ke3 Qxg3+ 64. Kd2 Rh2+ 65. Kc1 Qf4+ 66. Re3 Bf7 $19) 62... Qh2+ 63. Kf2 Qf4+ 64. Kg1 Bb5 65. Qe7+ Kg6 66. Qe4+ Qxe4 67. Rxe4 Rd8) 60. Kf2 $11 {[%emt 0:00:00] Qbe7+ would kill now.} Rxe8 $40 {[%emt 0:00:00][%mdl 128] Black has some attack.} 61. Qg4 {[%emt 0:03:43]} (61. Bxg5 $1 $11 Rxe1 62. Qxe1 fxg5 63. Qe7+ Kg6 64. Qe6+ Kg7 65. Qe7+ Kg8 66. Qxg5+ Kh8 67. Qf6+ Kh7 68. Qf7+ Kh8 69. Qf6+ Kg8 70. Qg6+ Kf8 71. Qf6+ Ke8 72. Qe6+ Kf8 73. Qf5+ Ke8 74. Qe4+ Kd7 75. Qd5+ Qd6 76. Qxd6+ Kxd6 77. Ke3) 61... Qe5 $17 {[%emt 0:05:51] Threatens to win with ...Qb2+.} 62. Qd4 {[%emt 0:00:07] Inhibits Qb2+.} Qf5+ {[%emt 0:00:30]} 63. Kg1 {[%emt 0:00:04]} Kg6 {[%emt 0:00:10]} 64. Qd2 {[%emt 0:01:29]} Bc6 {[%emt 0:04:19]} 65. Bf2 {[%emt 0:01:14]} Qg4 {[%emt 0:01:14][%csl Gc6][%cal Rg4g2]} 66. Qd3+ {[%emt 0:00:35]} ({Don't go for} 66. Qc2+ $2 Be4 67. Rxe4 Qxe4 $19) 66... Be4 {[%emt 0:00:16][%csl Ge4][%cal Rg4g2]} 67. Qg3 {[%emt 0:00:27]} Qxg3 {[%emt 0:00:16]} 68. Bxg3 {[%emt 0:00:03][%mdl 4096] Endgame KRB-KRB} f5 {[%emt 0:00:04]} 69. Bc7 {[%emt 0:01:15]} Kh5 {[%emt 0:01:14]} 70. Kf2 {[%emt 0:01:06]} Kg4 {[%emt 0:00:18]} 71. Rc1 {[%emt 0:01:55]} Re7 {[%emt 0:01:45]} 72. Rc3 {[%emt 0:02:34] [#] Inhibits Bd3.} (72. Rc5 $17) 72... Rd7 {[%emt 0:00:17]} (72... Bd3 $1 $19 {[%mdl 512] Strongly threatening ...Re2+.} 73. Rxd3 (73. Bd8 Re2+) 73... Rxc7 74. Rg3+ Kf4 75. Rf3+ Ke5 76. Re3+ Kd5 77. Rd3+ Kc4) 73. g3 {[%emt 0:00:15]} Bd3 {[%emt 0:04:34][%cal Od7e7] aiming for ...Re7!} 74. Bb8 {[%emt 0:00:32]} Bb5 {[%emt 0:00:31]} 75. Bc7 $2 {[%emt 0:01:19][%mdl 8192] [#] Now White is beyond hope.} (75. Rc2 $17 {is a better chance.}) 75... Re7 $1 $19 {[%emt 0:01:12] Black is clearly winning.} 76. Bd8 {[%emt 0:03:22]} (76. Bb8 $142 Re2+ 77. Kg1) 76... Re2+ {[%emt 0:00:05]} 77. Kg1 {[%emt 0:00:02]} Rd2 {[%emt 0:00:22]} 78. Be7 {[%emt 0:00:32]} Bd3 {[%emt 0:00:41] Weighted Error Value: White=0.09 (flawless) /Black=0.08 (flawless)} 0-1

[Event "FIDE Candidates Tournament 2022"]
[Site "Madrid"]
[Date "2022.07.04"]
[Round "14.2"]
[White "Caruana, Fabiano"]
[Black "Firouzja, Alireza"]
[Result "0-1"]
[ECO "C65"]
[WhiteElo "2786"]
[BlackElo "2804"]
[Annotator "TA"]
[PlyCount "126"]
[EventDate "2022.06.17"]
[EventType "tourn"]
[EventCountry "ESP"]
[SourceTitle "playchess.com"]
[Source "ChessBase"]
[SourceQuality "1"]
[TimeControl "40/7200:20/3600:900+30"]

{[%evp 9,126,21,21,12,18,8,15,10,14,-2,10,0,0,0,0,-2,0,-6,0,-14,0,0,0,-15,-9,-14,-10,-12,-8,-27,47,46,47,47,58,52,56,56,54,52,60,58,60,25,25,10,9,10,30,10,9,0,0,0,0,-74,-71,-72,-70,-91,-82,-92,-88,-85,-86,-131,-131,-130,-127,-128,-122,-120,-126,-126,-119,-118,-118,-152,-108,-108,-110,-110,-102,-102,-88,-109,-95,-92,-74,-83,-56,-59,-57,-83,-60,-85,-86,-99,-39,-84,-84,-131,-131,-132,-152,-140,-66,-80,-66,-66,-66,-645,-637,-993,-939,-729,-612,-5422,-4618]} 1. e4 {[%emt 0:00:03]} e5 {[%emt 0:00:04]} 2. Nf3 {[%emt 0:00:05]} Nc6 {[%emt 0:00:03]} 3. Bb5 {[%emt 0:00:05]} Nf6 {[%emt 0:00:05][%cal Bg8f6,Bf6d7,Bd7c5][%mdl 32]} 4. d3 {[%emt 0:00:24]} Bc5 {[%emt 0:00:10]} 5. Bxc6 {[%emt 0:00:17]} dxc6 {[%emt 0:00:07]} 6. Nbd2 {[%emt 0:00:05] C65: Ruy Lopez: Berlin Defence (3...Nf6), unusual lines and 4 0-0 Bc5.} Nd7 {[%emt 0:00:27]} 7. O-O {[%emt 0:00:42]} O-O {[%emt 0:04:21]} 8. Nc4 {[%emt 0:00:15] The position is equal.} f6 {[%emt 0:04:39]} 9. Kh1 {[%emt 0:02:52] [#]} Rf7 $5 $146 {[%emt 0:07:27][%mdl 8] New and interesting.} ({Predecessor:} 9... a5 10. a4 Nb6 11. Be3 Bxe3 12. Nxe3 Be6 13. Ng1 Qd4 14. b3 Nd7 15. Ne2 Qc5 {1-0 (108) Giri,A (2764)-Lysyj,I (2593) Chess.com INT 2020}) 10. Nh4 {[%emt 0:23:00]} Bf8 {[%emt 0:01:39]} 11. Nf5 {[%emt 0:09:25]} Nc5 {[%emt 0:03:49]} 12. Qh5 {[%emt 0:01:20]} Be6 {[%emt 0:01:53]} 13. b3 {[%emt 0:03:51]} Qd7 {[%emt 0:09:45]} 14. Be3 {[%emt 0:02:48]} Kh8 {[%emt 0:02:26] White must now prevent ...g6.} 15. Nh4 {[%emt 0:03:30] Prevents g6. Pair of Knights!} Kg8 {[%emt 0:00:24] aiming for ...Bg4.} 16. Qe2 {[%emt 0:03:55]} Re8 {[%emt 0:24:52]} 17. a4 {[%emt 1:07:23]} b6 {[%emt 0:04:19]} 18. Rg1 {[%emt 0:00:00]} a5 {[%emt 0:03:53]} 19. Nd2 {[%emt 0:00:00]} f5 {[%emt 0:08:03]} ({Black should play} 19... Nb7 $11) 20. exf5 $14 {[%emt 0:00:00]} (20. Nxf5 {is interesting.} Bxf5 21. exf5 Rxf5 22. Bxc5 Bxc5 23. Ne4) 20... Bxf5 {[%emt 0:00:31]} 21. Nxf5 {[%emt 0:00:00]} Qxf5 {[%emt 0:03:42]} 22. Bxc5 {[%emt 0:00:00]} Bxc5 {[%emt 0:00:05]} 23. Ne4 {[%emt 0:00:00]} Bb4 {[%emt 0:00:40]} 24. Rgf1 {[%emt 0:00:00]} Qg6 {[%emt 0:00:53]} 25. Rad1 {[%emt 0:00:00]} h5 {[%emt 0:03:35]} 26. g3 {[%emt 0:00:00]} Ref8 {[%emt 0:03:16]} 27. d4 {[%emt 0:00:00]} exd4 {[%emt 0:01:47]} 28. Rxd4 {[%emt 0:00:00]} h4 {[%emt 0:09:00]} 29. gxh4 {[%emt 0:00:00]} Rf4 30. Qc4+ {[%emt 0:00:00]} Kh8 $1 {[%emt 0:01:16] Hoping for ...c5.} 31. Ng5 {[%emt 0:00:00]} b5 {[%emt 0:03:03]} 32. Qd3 {[%emt 0:00:00]} (32. Qe6 $11 {keeps the balance.} Qxe6 33. Nxe6 Rxf2 34. Rxf2 Rxf2 35. axb5) 32... Qxd3 $17 {[%emt 0:00:18]} 33. Rxd3 {[%emt 0:00:00] [#]} bxa4 $1 {[%emt 0:03:32] ...a3 is the strong threat.} (33... Rxh4 34. Ne6 Re8 35. Nxc7 $11) (33... Rxf2 34. Rxf2 Rxf2 35. Rd8+ Rf8 36. Rxf8+ Bxf8 37. Kg2 $16) 34. bxa4 {[%emt 0:00:00]} Bd6 {[%emt 0:00:19]} ({Don't play} 34... Rxf2 35. Rxf2 Rxf2 36. Rd8+ Rf8 37. Rxf8+ Bxf8 38. Kg2 $16) 35. Rc3 {[%emt 0:00:00]} Rxa4 {[%emt 0:02:26]} 36. Rxc6 {[%emt 0:00:00]} Rxh4 {[%emt 0:00:12] Black is more active.} 37. f4 {[%emt 0:00:00]} Rhxf4 {[%emt 0:02:35]} 38. Rxf4 {[%emt 0:00:00]} Bxf4 {[%emt 0:00:15][%mdl 4096] Endgame KRB-KRN} ({Not} 38... Rxf4 39. Ra6 $15) 39. Ne4 {[%emt 0:00:00]} Ra8 {[%emt 0:00:38] And now ...a4 would win.} 40. Rc4 {[%emt 0:00:00]} Be5 {[%emt 0:00:00]} ({Weaker is} 40... a4 41. Nc3 Bd6 42. Nxa4 $11) 41. Ra4 {[%emt 0:02:25] [#]} Kg8 $1 {[%emt 0:02:10]} 42. Kg2 {[%emt 0:02:26]} Kf7 {[%emt 0:02:17]} 43. Nd2 {[%emt 0:13:42]} Bc3 {[%emt 0:13:19]} 44. Ne4 {[%emt 0:00:05]} Bb4 {[%emt 0:08:04]} 45. Kf3 {[%emt 0:00:52]} Ke6 {[%emt 0:00:38]} 46. c3 {[%emt 0:00:08]} Be7 {[%emt 0:01:25]} 47. Ke3 {[%emt 0:00:32]} c6 {[%emt 0:04:08]} 48. h3 {[%emt 0:02:58][%cal Bh2h3,Bh3h4][%mdl 32]} Bd8 {[%emt 0:01:56]} 49. Nc5+ {[%emt 0:01:39]} Kf5 {[%emt 0:06:04]} 50. Nb3 {[%emt 0:03:11]} Bb6+ {[%emt 0:00:06]} 51. Kf3 {[%emt 0:00:31]} Ke5 {[%emt 0:01:16]} 52. h4 {[%emt 0:31:31]} Kd5 {[%emt 0:04:43]} 53. h5 {[%emt 0:00:00]} c5 {[%emt 0:01:00]} (53... Rf8+ $17 54. Kg4 c5) 54. Nd2 {[%emt 0:00:00]} Bc7 {[%emt 0:01:38]} 55. Ke2 {[%emt 0:00:00]} (55. Ke3 $142) 55... Rh8 {[%emt 0:02:22]} 56. Rg4 {[%emt 0:00:00]} Rxh5 {[%emt 0:00:14] Strongly threatening ...g5.} 57. Rxg7 {[%emt 0:00:00]} Kc6 {[%emt 0:04:20]} (57... Be5 $17 58. c4+ Kd4) 58. Kd3 {[%emt 0:00:00]} Be5 {[%emt 0:04:42]} 59. Rf7 {[%emt 0:00:00]} a4 {[%emt 0:01:47]} 60. Ne4 $2 {[%emt 0:00:00][%mdl 8192] This costs White the game.} (60. Nb1 $15) 60... Rh3+ $19 {[%emt 0:00:00] Black is clearly winning.} 61. Kd2 {[%emt 0:04:56]} Kd5 {[%emt 0:02:34]} 62. Nf2 {[%emt 0:00:05]} Rxc3 {[%emt 0:05:03] Threatens to win with ...a3.} 63. Rf5 {[%emt 0:02:46][%cal Of5e5]} Rg3 {[%emt 0:00:50] Weighted Error Value: White=0.40/Black=0.12 (very precise)} 0-1